Cogmind - Beta 11.1 @@@ ROGUE MODE // 2022.04.25 @ 20:35:45 Player: slowdive Result: Destroyed by H-77 Assassin with Coil Gun Performance ------------- Evolutions (6) 3000 Regions Visited (12) 2400 Robots Destroyed (71) 355 Value Destroyed (1604) 1604 Prototype IDs (10) 200 Alien Tech Used (0) 0 Bonus (629) 629 TOTAL SCORE: 8188 Bonus ------- Follower Combat Kills 153 Entered DSFs 500 Friendly Fire -24 Cogmind --------- Core Integrity 0/1150 Matter 130/300 Energy 89/100 System Corruption 0% Temperature Cool (0) Movement Core (50) Location -4/Factory Parts ------- > --- POWER (2) -------- (None) > --- PROPULSION (5) --- (None) > --- UTILITY (9) ------ Advanced Salvage Targeting Computer Improved Targeting Computer > --- WEAPON (3) ------- (None) > --- INVENTORY (5) ---- (None) Peak State ------------ > --- POWER ------------ Micro Nuclear Core > --- PROPULSION ------- Xenon Bombardment Thruster Xenon Bombardment Thruster Xenon Bombardment Thruster Improved Surge Thruster > --- UTILITY ---------- Medium Storage Unit Advanced Weight Redist. System Seismic Detector Advanced Salvage Targeting Computer Improved Targeting Computer Improved Propulsion Shielding Weapon Shielding > --- WEAPON ----------- KE Penetrator Enhanced Gauss Cannon Remote Datajack > --- INVENTORY -------- Precision Matter Filter Improved Shield Generator Relay Coupler [Grunt] Improved Recalibrator Thermic Laser Thermic Laser Proton Missile Launcher Mace [Rating: 57] Favorites ----------- Power Improved Ion Engine Engine Improved Ion Engine Power Core Enhanced Nuclear Core Propulsion Light Treads Treads Light Treads Leg Aluminum Leg Hover Unit Airjet Flight Unit Improved Flight Unit Utility Seismic Detector Device Seismic Detector Storage Medium Storage Unit Processor Improved Targeting Computer Protection Light Armor Plating Weapon Improved Light Cannon Energy Gun Backup Laser I Energy Cannon Improved EM Pulse Cannon Ballistic Gun Improved Assault Rifle Ballistic Cannon Improved Light Cannon Launcher Grenade Launcher Special Weapon Remote Datajack Impact Weapon Mace Slashing Weapon Chainsword Build | -11 -10 -10 -9 -9 -8 -7 -7 -7 -6 -6 -5 -4 ------- Run | Scr Mat Min Mat Sto Mat Fac Low Low Fac DSF Fac Fac Slots Evolved 12 | . . . 2 . 2 2 . . 2 . 2 2 Power 1 | . . . . . . . . . . . . 1 Propulsion 3 | . . . 1 . 1 1 . . . . . . Utility 7 | . . . 1 . 1 1 . . 2 . 1 1 Weapon 1 | . . . . . . . . . . . 1 . Parts Attached 144 | . 11 5 25 18 13 30 2 2 2 12 17 7 Power 19 | . 1 2 4 5 . 5 . . . . 1 1 Engine 17 | . 1 2 4 5 . 4 . . . . . 1 Core 2 | . . . . . . 1 . . . . 1 . Reactor . | . . . . . . . . . . . . . Propulsion 36 | . . 2 7 4 5 7 1 . . 5 3 2 Treads 14 | . . 2 6 4 1 . . . . . . 1 Leg 2 | . . . . . . . 1 . . 1 . . Wheel . | . . . . . . . . . . . . . Hover 2 | . . . . . . 2 . . . . . . Flight 18 | . . . 1 . 4 5 . . . 4 3 1 Utility 60 | . 7 . 8 2 8 11 1 2 2 6 9 4 Device 35 | . 4 . 4 1 5 6 1 . 2 5 3 4 Storage 11 | . 2 . 1 . 1 5 . 1 . . 1 . Processor 7 | . 1 . 1 . 2 . . 1 . . 2 . Hackware . | . . . . . . . . . . . . . Protection 7 | . . . 2 1 . . . . . 1 3 . Artifact . | . . . . . . . . . . . . . Weapon 29 | . 3 1 6 7 . 7 . . . 1 4 . Energy Gun 3 | . . . 1 1 . . . . . . 1 . Energy Cannon 2 | . . . . . . 2 . . . . . . Ballistic Gun 3 | . . . . 1 . 1 . . . . 1 . Ballistic Cannon 13 | . 2 1 4 4 . 1 . . . . 1 . Launcher 3 | . 1 . 1 . . 1 . . . . . . Special Weapon 1 | . . . . . . . . . . . 1 . Impact Weapon 2 | . . . . . . 2 . . . . . . Slashing Weapon 2 | . . . . 1 . . . . . 1 . . Piercing Weapon . | . . . . . . . . . . . . . Special Melee Weapon . | . . . . . . . . . . . . . Unidentified Prototypes 10 | . . . 1 5 . 3 . . . . 1 . Parts Lost 55 | . . . 5 9 . 8 . 3 . 11 7 12 Power 6 | . . . 2 . . 2 . . . . 1 1 Propulsion 20 | . . . 1 4 . 5 . 1 . 3 3 3 Utility 21 | . . . . 2 . 1 . 2 . 7 3 6 Weapon 8 | . . . 2 3 . . . . . 1 . 2 Highest Loss Streak 13 | . . . 3 8 . 3 . 3 . 6 7 13 To Critical Strikes . | . . . . . . . . . . . . . Average Slot Usage (%) 79 | . 99 100 98 96 97 59 26 31 20 33 56 17 Engine 7 | . 14 14 10 9 9 2 . . . . 2 1 Treads 14 | . . 26 32 31 29 . . . . . . . Leg 4 | . 28 1 . . . . . . . . . . Flight 4 | . . . . . 6 20 . . . 8 16 1 Device 9 | . 8 . 10 7 9 14 10 12 6 11 12 3 Storage 9 | . 14 14 11 11 8 5 7 8 6 6 4 . Processor 7 | . 4 14 8 11 9 3 . 3 6 1 3 10 Protection 1 | . . . 2 3 7 . . . . . 2 . Ballistic Gun 2 | . 1 . . 7 9 3 . . . . 1 . Ballistic Cannon 12 | . 23 27 20 13 7 . . . . . . . Naked Turns 18 | . . . . . . 18 . . . . . . Heaviest Build 107 | 10 55 55 102 107 103 23 11 12 10 19 31 18 Greatest Support 83 | 20 20 40 66 66 83 26 14 14 9 26 33 30 Greatest Overweight (x) 6 | . 2 2 2 4 1 1 . 1 1 6 1 4 Average Overweight (x) . | . . 1 . 1 . . . . 1 1 . . Largest Inventory Capacity 25 | . 20 20 25 25 25 25 10 10 10 10 10 5 Average Capacity 15 | . 12 20 21 25 22 7 10 10 10 10 9 5 Most Carried 25 | . 20 20 25 25 25 10 9 10 10 10 10 4 Average Carried 14 | . 12 19 20 23 20 7 6 9 9 8 8 . Final Capacity 25 | 8 20 20 25 25 25 10 10 10 10 10 5 5 Final Carried 25 | 6 20 20 25 23 25 6 9 10 10 10 5 . Class Distribution -------------------- 75% | Mutant 8% | Sprinter 8% | Commander-Mutant 3% | Scout Dominant Class ---------------- Mutant | -10/Materials Mutant | -10/Mines Mutant | -9/Materials Commander-Mutant | -9/Storage Mutant | -8/Materials Sprinter | -7/Factory Mutant | -7/Lower Caves Mutant | -7/Lower Caves Mutant | -6/Factory Mutant | -6/DSF Mutant | -5/Factory Mutant | -4/Factory Resources | -11 -10 -10 -9 -9 -8 -7 -7 -7 -6 -6 -5 -4 ----------- Run | Scr Mat Min Mat Sto Mat Fac Low Low Fac DSF Fac Fac Matter Collected 2541 | 200 273 321 422 581 94 282 34 264 . 7 59 4 Remotely . | . . . . . . . . . . . . . Salvage Created 1816 | . 304 224 424 508 135 162 . . . . 59 . Parts 117 | . 17 17 33 33 6 6 . . . . 5 . Haulers Intercepted 13 | . 2 . 4 4 1 2 . . . . . . Recyclers Shooed 1 | . . . . . . 1 . . . . . . Parts Field Recycled . | . . . . . . . . . . . . . Retrieved Matter . | . . . . . . . . . . . . . Parts Self-Destructed . | . . . . . . . . . . . . . Prevented . | . . . . . . . . . . . . . Kills | -11 -10 -10 -9 -9 -8 -7 -7 -7 -6 -6 -5 -4 ------- Run | Scr Mat Min Mat Sto Mat Fac Low Low Fac DSF Fac Fac Combat Hostiles Destroyed 46 | . 9 7 14 10 4 . . . . . 2 . Melee 2 | . . . 1 1 . . . . . . . . Guns 4 | . . . . 1 2 . . . . . 1 . Cannons 34 | . 7 4 12 8 2 . . . . . 1 . AOE 6 | . 2 3 1 . . . . . . . . . Classes Destroyed 10 | . 4 2 3 . . . . . . . 1 . Builder 2 | . . . 1 . . 1 . . . . . . Tunneler 1 | . . . . . . . . . . . 1 . Hauler 13 | . 2 . 4 4 1 2 . . . . . . Recycler 2 | . . 1 . 1 . . . . . . . . Mechanic 2 | . . 1 . . . 1 . . . . . . Operator 2 | . . . 1 1 . . . . . . . . Watcher 3 | . 3 . . . . . . . . . . . Swarmer 17 | . 3 3 4 3 2 . . . . . 2 . Grunt 22 | . 6 4 6 5 1 . . . . . . . Sentry 7 | . . . 4 2 1 . . . . . . . Best Kill Streak 9 | . 3 3 3 9 2 2 . . . . 2 . Combat Bots Only 8 | . 3 3 3 8 2 . . . . . 2 . Max Kills in Single Turn 2 | . 1 2 1 1 1 1 . . . . 1 . Gunslinging . | . . . . . . . . . . . . . Exploded 2 | . 1 2 1 . . . . . . . . . Melee 1 | . . . 1 1 . . . . . . . . Uniques/NPCs Destroyed . | . . . . . . . . . . . . . Combat | -11 -10 -10 -9 -9 -8 -7 -7 -7 -6 -6 -5 -4 -------- Run | Scr Mat Min Mat Sto Mat Fac Low Low Fac DSF Fac Fac Damage Taken 8251 | . 304 277 1571 1122 237 1058 . 115 . 1117 658 1792 Core 2933 | . 70 88 231 137 22 525 . 64 . 546 92 1158 Absorbed by Shields 119 | . . . . . 68 . . . . . . 51 Redirected to Shielding 194 | . . . . . . . . . . 38 156 . Regen/Repaired (Parts) 74 | . . . . . . . . . . . 74 . Core Remaining (%) 54 | 100 . 36 . 8 96 . . 15 . 35 90 . Volleys Fired 185 | . 30 12 59 35 22 17 . . . . 10 . Largest 2 | . 2 2 2 2 2 2 . . . . 2 . Hottest 104 | . 78 78 104 78 62 62 . . . . 90 . Shots Fired 320 | . 57 25 103 60 44 19 . . . . 12 . Gun 61 | . . . 6 11 22 13 . . . . 9 . Cannon 243 | . 53 22 93 49 22 2 . . . . 2 . Launcher 15 | . 4 3 4 . . 4 . . . . . . Special 1 | . . . . . . . . . . . 1 . Kinetic 293 | . 53 22 93 60 44 15 . . . . 6 . Thermal 11 | . . . 6 . . . . . . . 5 . Explosive 11 | . 4 3 4 . . . . . . . . . Electromagnetic 4 | . . . . . . 4 . . . . . . Robot Hit Streak 12 | . 4 11 9 8 12 5 . . . . 4 . Robot Miss Streak 7 | . 5 2 7 3 4 1 . . . . 2 . Penetration Max . | . . . . . . . . . . . . . Secondary Targets . | . . . . . . . . . . . . . Shots Hit Robots 196 | . 26 16 63 36 32 16 . . . . 7 . Core Hits 91 | . 19 12 23 18 9 6 . . . . 4 . Critical Kills . | . . . . . . . . . . . . . Critical Parts Destroyed 1 | . . . . . . 1 . . . . . . Critical Strikes 11 | . 2 . 3 2 1 1 . . . . 2 . Burn 2 | . . . 1 . . . . . . . 1 . Blast 8 | . 2 . 2 2 1 . . . . . 1 . Smash 1 | . . . . . . 1 . . . . . . Melee Attacks 7 | . . . . 3 . 4 . . . . . . Impact 4 | . . . . . . 4 . . . . . . Slashing 3 | . . . . 3 . . . . . . . . Piercing . | . . . . . . . . . . . . . Sneak Attacks 2 | . . . . . . 2 . . . . . . Combat Hostiles . | . . . . . . . . . . . . . Follow-up Attacks . | . . . . . . . . . . . . . Damage Inflicted 4910 | . 749 531 1582 747 568 536 . . . . 190 7 Guns 644 | . . . 30 95 256 138 . . . . 125 . Cannons 3250 | . 554 377 1271 628 312 43 . . . . 65 . Explosions 802 | . 195 154 268 . . 185 . . . . . . Melee 179 | . . . . 24 . 155 . . . . . . Ramming 35 | . . . 13 . . 15 . . . . . 7 Kinetic 3807 | . 554 377 1271 723 568 181 . . . . 133 . Thermal 117 | . . . 30 . . 30 . . . . 57 . Explosive 617 | . 195 154 268 . . . . . . . . . Electromagnetic 155 | . . . . . . 155 . . . . . . Impact 155 | . . . . . . 155 . . . . . . Slashing 24 | . . . . 24 . . . . . . . . Piercing . | . . . . . . . . . . . . . Highest Corruption 5 | . 2 2 . 5 . 5 5 5 . 1 . . Average Corruption 2 | . 1 2 . 5 . 2 5 5 . 1 . . Corruption Purged . | . . . . . . . . . . . . . Corruption Blocked . | . . . . . . . . . . . . . Effects 42 | . 10 8 . 5 . 6 8 5 . . . . Message Errors 11 | . 2 . . 1 . 3 2 3 . . . . Matter Fused 5 | . 1 1 . 1 . . 2 . . . . . Heat Flow Errors 6 | . 1 1 . 1 . . 2 1 . . . . Energy Discharges 5 | . 3 1 . . . . 1 . . . . . Data Loss (minor) 7 | . 2 1 . 1 . 2 . 1 . . . . Data Loss (major) 2 | . . . . 1 . 1 . . . . . . Misfires 4 | . 1 3 . . . . . . . . . . Alerts 2 | . . 1 . . . . 1 . . . . . Overload Shots . | . . . . . . . . . . . . . Overflow Damage 160 | . 24 . 14 4 . 118 . . . . . . Projectiles 41 | . 24 . 13 4 . . . . . . . . Explosions 6 | . . . 1 . . 5 . . . . . . Melee 113 | . . . . . . 113 . . . . . . Knockbacks 29 | . 9 3 9 6 2 . . . . . . . Impact . | . . . . . . . . . . . . . Kinetic 26 | . 7 3 9 5 2 . . . . . . . Secondary 3 | . 2 . . 1 . . . . . . . . Self-Inflicted Damage 131 | . . 73 21 . . 34 . . . . . 3 Shots 4 | . . 2 1 . . 1 . . . . . . Rammed 4 | . . . 1 . . 1 . . . . 1 1 Targets Rammed 5 | . . . 2 . . 1 . . . . 1 1 Kicked . | . . . . . . . . . . . . . Crushed 1 | . . . 1 . . . . . . . . . Highest Temperature 444 | . 444 83 388 282 15 3 127 128 . . 38 . Average Temperature 97 | . 105 33 117 110 3 2 64 77 . . 15 . Received Heat Transfer 1835 | . 114 57 630 399 125 111 . 24 . 144 144 87 Effects 11 | . 6 . 2 3 . . . . . . . . Shutdowns 1 | . 1 . . . . . . . . . . . Energy Bleed 2 | . 2 . . . . . . . . . . . Interference 3 | . . . . 3 . . . . . . . . Matter Decay 3 | . 3 . . . . . . . . . . . Short Circuit 1 | . . . 1 . . . . . . . . . Damage (minor) 1 | . . . 1 . . . . . . . . . Siege Activations . | . . . . . . . . . . . . . Robots Corrupted . | . . . . . . . . . . . . . Combat Hostiles . | . . . . . . . . . . . . . Parts Fried 4 | . . . . . . 4 . . . . . . Impact Corruptions 3 | . 1 . . . . 2 . . . . . . Robots Melted . | . . . . . . . . . . . . . Combat Hostiles . | . . . . . . . . . . . . . Parts Melted . | . . . . . . . . . . . . . Heat Transferred 383 | . . . 148 . . 50 . . . . 185 . Parts Sabotaged . | . . . . . . . . . . . . . Parts Stolen . | . . . . . . . . . . . . . Parts Stripped . | . . . . . . . . . . . . . Power Chain Reactions 1 | . . . . . . 1 . . . . . . Missiles Intercepted . | . . . . . . . . . . . . . Alert | -11 -10 -10 -9 -9 -8 -7 -7 -7 -6 -6 -5 -4 ------- Run | Scr Mat Min Mat Sto Mat Fac Low Low Fac DSF Fac Fac Peak Influence 337 | . 174 321 332 337 178 305 . . 72 50 157 82 Initial 133 | . . 30 54 133 58 33 . . 67 50 7 71 Average 142 | . 43 192 205 235 90 164 . . 70 17 43 52 Maximum Alert Level 1 | . . 1 1 1 . 1 . . . . . . Low Security (%) 72 | . 100 50 48 40 100 73 . . 100 100 100 100 Level 1 27 | . . 50 51 59 . 26 . . . . . . Level 2 . | . . . . . . . . . . . . . Level 3 . | . . . . . . . . . . . . . Level 4 . | . . . . . . . . . . . . . Level 5 . | . . . . . . . . . . . . . High Security . | . . . . . . . . . . . . . Max Security . | . . . . . . . . . . . . . Squads Dispatched 21 | . 1 1 3 1 1 11 . . . . 1 2 Investigation 10 | . . . . . 1 7 . . . . 1 1 Extermination 2 | . . . . . . 2 . . . . . . Reinforcement 8 | . 1 . 3 1 . 2 . . . . . 1 Assault 1 | . . 1 . . . . . . . . . . Garrison . | . . . . . . . . . . . . . Intercept . | . . . . . . . . . . . . . Searches Triggered . | . . . . . . . . . . . . . Construction Impeded 1 | . . . . . . 1 . . . . . . Haulers Reinforced 1 | . . . . . . 1 . . . . . . Active Scanning Responses . | . . . . . . . . . . . . . Cargo Convoy Interrupts . | . . . . . . . . . . . . . Stealth | -11 -10 -10 -9 -9 -8 -7 -7 -7 -6 -6 -5 -4 --------- Run | Scr Mat Min Mat Sto Mat Fac Low Low Fac DSF Fac Fac Distress Signals 6 | . 1 . 4 . . 1 . . . . . . Communications Jammed . | . . . . . . . . . . . . . Distress Signals . | . . . . . . . . . . . . . Times Spotted 149 | . 17 12 27 17 15 26 . 1 . 5 18 11 Peak Tracking Total 11 | . 4 4 5 11 6 7 . 1 . 4 9 6 Tactical Retreats 26 | . . . 3 . 4 11 . . . 2 3 3 Traps | -11 -10 -10 -9 -9 -8 -7 -7 -7 -6 -6 -5 -4 ------- Run | Scr Mat Min Mat Sto Mat Fac Low Low Fac DSF Fac Fac Traps Triggered 9 | . 2 . . 3 . 3 . . . . . 1 Indirectly . | . . . . . . . . . . . . . Trap Hack Attempts . | . . . . . . . . . . . . . Triggered . | . . . . . . . . . . . . . Disarmed . | . . . . . . . . . . . . . Reprogrammed . | . . . . . . . . . . . . . Reused . | . . . . . . . . . . . . . Traps Extracted . | . . . . . . . . . . . . . Installed . | . . . . . . . . . . . . . Triggered . | . . . . . . . . . . . . . Machines | -11 -10 -10 -9 -9 -8 -7 -7 -7 -6 -6 -5 -4 ---------- Run | Scr Mat Min Mat Sto Mat Fac Low Low Fac DSF Fac Fac Machines Disabled 7 | . 1 1 1 1 . 3 . . . . . . Max in Single Turn 2 | . 1 1 1 1 . 2 . . . . . . Machines Sabotaged . | . . . . . . . . . . . . . Garrisons Compromised . | . . . . . . . . . . . . . Overloaded Fab Kills . | . . . . . . . . . . . . . Hacking | -11 -10 -10 -9 -9 -8 -7 -7 -7 -6 -6 -5 -4 --------- Run | Scr Mat Min Mat Sto Mat Fac Low Low Fac DSF Fac Fac Machines Accessed 44 | . 4 . 5 6 3 16 . . 1 . 6 3 Terminals 31 | . 4 . 3 6 3 10 . . 1 . 3 1 Fabricators 5 | . . . . . . 4 . . . . . 1 Repair Stations 2 | . . . . . . 1 . . . . 1 . Recycling Units 2 | . . . 1 . . . . . . . 1 . Scanalyzers 2 | . . . 1 . . . . . . . 1 . Garrison Access 2 | . . . . . . 1 . . . . . 1 Total Hacks 101 | . 9 . 11 12 6 38 . . 2 . 17 6 Successful 41 | . 2 . 9 6 . 13 . . 1 . 9 1 Failed 60 | . 7 . 2 6 6 25 . . 1 . 8 5 Catastrophic 7 | . 2 . . 1 1 3 . . . . . . Database Lockouts . | . . . . . . . . . . . . . Manual 33 | . 10 . 3 7 1 8 . . . . 1 3 Terminals 67 | . 9 . 6 12 6 22 . . 2 . 7 3 Fabricators 12 | . . . . . . 11 . . . . . 1 Repair Stations 8 | . . . . . . 3 . . . . 5 . Recycling Units 6 | . . . 2 . . . . . . . 4 . Scanalyzers 4 | . . . 3 . . . . . . . 1 . Garrison Access 4 | . . . . . . 2 . . . . . 2 Terminal Hacks 20 | . . . 3 6 . 6 . . 1 . 4 . Record 7 | . . . 1 . . 3 . . . . 3 . Part Schematic 1 | . . . . 1 . . . . . . . . Robot Analysis 2 | . . . 1 1 . . . . . . . . Open Door 2 | . . . . 2 . . . . . . . . Open DSF 2 | . . . . . . 1 . . 1 . . . Level Access Points 2 | . . . . 1 . . . . . . 1 . Recycling Unit Index 1 | . . . . . . 1 . . . . . . Alert Level 1 | . . . 1 . . . . . . . . . Registered Components 1 | . . . . 1 . . . . . . . . Zone Layout 1 | . . . . . . 1 . . . . . . Fabricator Hacks 7 | . . . . . . 6 . . . . . 1 Load Schematic 3 | . . . . . . 3 . . . . . . Build 4 | . . . . . . 3 . . . . . 1 Repair Station Hacks 4 | . . . . . . 1 . . . . 3 . Scan Component 2 | . . . . . . 1 . . . . 1 . Repair 1 | . . . . . . . . . . . 1 . Refit 1 | . . . . . . . . . . . 1 . Recycling Unit Hacks 4 | . . . 2 . . . . . . . 2 . Report Inventory 2 | . . . 1 . . . . . . . 1 . Retrieve Components 2 | . . . 1 . . . . . . . 1 . Scanalyzer 2 | . . . 2 . . . . . . . . . Insert Component 1 | . . . 1 . . . . . . . . . Analyze 1 | . . . 1 . . . . . . . . . Garrison Access Hacks . | . . . . . . . . . . . . . Unauthorized Hacks 4 | . 2 . 2 . . . . . . . . . Terminals 4 | . 2 . 2 . . . . . . . . . Assimilate 4 | . 2 . 2 . . . . . . . . . Fabricators . | . . . . . . . . . . . . . Repair Stations . | . . . . . . . . . . . . . Recycling Units . | . . . . . . . . . . . . . Scanalyzers . | . . . . . . . . . . . . . Garrison Access . | . . . . . . . . . . . . . Data Cores Recovered . | . . . . . . . . . . . . . Used . | . . . . . . . . . . . . . Hacking Detections 28 | . 3 . 3 4 2 10 . . 1 . 3 2 Full Trace Events 10 | . . . . . 1 7 . . . . 1 1 Feedback Events . | . . . . . . . . . . . . . Feedback Blocked . | . . . . . . . . . . . . . Robot Schematics Acquired . | . . . . . . . . . . . . . Robots Built 2 | . . . . . . 1 . . . . . 1 Authchips . | . . . . . . . . . . . . . Time 120 | . . . . . . 27 . . . . . 93 Total Robot Build Rating 8 | . . . . . . 1 . . . . . 7 Part Schematics Acquired 2 | . . . 1 1 . . . . . . . . Parts Built 4 | . . . . . . 4 . . . . . . Authchips . | . . . . . . . . . . . . . Time 68 | . . . . . . 68 . . . . . . Total Part Build Rating 4 | . . . . . . 4 . . . . . . Parts Repaired 1 | . . . . . . . . . . . 1 . Time 50 | . . . . . . . . . . . 50 . Parts Recycled . | . . . . . . . . . . . . . Recycled Matter . | . . . . . . . . . . . . . Retrieved Matter . | . . . . . . . . . . . . . Retrieved Components 12 | . . . 10 . . . . . . . 2 . Parts Scanalyzed 1 | . . . 1 . . . . . . . . . Part Schematics Acquired 1 | . . . 1 . . . . . . . . . Parts Damaged . | . . . . . . . . . . . . . Bothacking | -11 -10 -10 -9 -9 -8 -7 -7 -7 -6 -6 -5 -4 ------------ Run | Scr Mat Min Mat Sto Mat Fac Low Low Fac DSF Fac Fac Used RIF Installer . | . . . . . . . . . . . . . Robots Hacked . | . . . . . . . . . . . . . Non-combat . | . . . . . . . . . . . . . Combat . | . . . . . . . . . . . . . Robot Hacks Applied . | . . . . . . . . . . . . . Relay Couplers Released . | . . . . . . . . . . . . . Fabnet Peak Effective % . | . . . . . . . . . . . . . Robots Rewired . | . . . . . . . . . . . . . Allies Hacked . | . . . . . . . . . . . . . Hacks Repelled . | . . . . . . . . . . . . . Allies | -11 -10 -10 -9 -9 -8 -7 -7 -7 -6 -6 -5 -4 -------- Run | Scr Mat Min Mat Sto Mat Fac Low Low Fac DSF Fac Fac Total Allies 16 | . . 4 . 10 . 1 . . . . . 1 Largest Group 10 | . . 4 . 10 4 1 . . . . . 1 Highest-Rated Group 88 | . . 70 . 88 40 10 . . . . . 35 Highest-Rated Ally 35 | . . 31 . 16 16 10 . . . . . 35 Total Orders 2 | . . . . . . 2 . . . . . . PICKUP 1 | . . . . . . 1 . . . . . . COLLECT 1 | . . . . . . 1 . . . . . . Ally Attacks 68 | . . 20 . 37 11 . . . . . . . Total Damage 608 | . . 251 . 290 67 . . . . . . . Kills 12 | . . 4 . 6 2 . . . . . . . Allies Corrupted . | . . . . . . . . . . . . . Allies Melted . | . . . . . . . . . . . . . Intel | -11 -10 -10 -9 -9 -8 -7 -7 -7 -6 -6 -5 -4 ------- Run | Scr Mat Min Mat Sto Mat Fac Low Low Fac DSF Fac Fac Robot Analysis Total 2 | . . . 1 1 . . . . . . . . Derelict Logs Recovered 3 | . . 2 . . . . . 1 . . . . Drone Launches . | . . . . . . . . . . . . . Drone Recoveries . | . . . . . . . . . . . . . Exploration | -11 -10 -10 -9 -9 -8 -7 -7 -7 -6 -6 -5 -4 ------------- Run | Scr Mat Min Mat Sto Mat Fac Low Low Fac DSF Fac Fac Turns Passed 6106 | . 1001 718 900 809 493 1044 249 210 73 137 256 216 Spaces Moved 5555 | 1 435 280 364 277 286 2377 399 298 71 99 405 263 Core 392 | . . . . . . 26 . 66 71 12 . 217 Treads 1051 | . . 266 364 277 119 . . . . . . 25 Legs 464 | 1 435 14 . . . . . . . 14 . . Wheels . | . . . . . . . . . . . . . Hover 651 | . . . . . . 20 399 232 . . . . Flight 2997 | . . . . . 167 2331 . . . 73 405 21 Fastest Speed 24 | 120 120 240 145 225 29 28 60 60 100 26 24 50 Average Speed 87 | 120 189 241 167 240 117 32 60 68 100 112 34 78 Slowest Speed 465 | 120 260 260 320 465 240 112 60 100 100 350 114 250 Overloaded Moves 2 | . . . . . . . . . . . 2 . Propulsion Burnouts . | . . . . . . . . . . . . . Robots Hopped 45 | . . . . . 1 41 . . . . 3 . Cave-ins Triggered . | . . . . . . . . . . . . . Exploration Rate (%) 35 | 2 68 47 35 53 22 33 55 34 2 91 13 10 Regions Visited 12 Branch Regions 4 Pre-discovered Areas 1 | . . 1 . . . . . . . . . . Known Exits Taken 4 | . . . . 1 1 . . . 1 . 1 . Unknown Exits Taken 7 | 1 1 1 1 . . 1 1 1 . . . . Scrap Searched 6 | . . . . . . . 2 4 . . . . Spaces Dug . | . . . . . . . . . . . . . Terrain Destroyed 81 | . 10 27 34 2 1 5 . . . . 2 . Melee . | . . . . . . . . . . . . . Projectile 16 | . 6 . 5 2 1 . . . . . 2 . AOE 65 | . 4 27 29 . . 5 . . . . . . Terrain Rammed . | . . . . . . . . . . . . . Walls Destroyed . | . . . . . . . . . . . . . Machines Disabled . | . . . . . . . . . . . . . Actions | -11 -10 -10 -9 -9 -8 -7 -7 -7 -6 -6 -5 -4 --------- Run | Scr Mat Min Mat Sto Mat Fac Low Low Fac DSF Fac Fac Total 6431 | . 560 302 549 358 399 2583 407 301 74 120 507 271 Wait 402 | . 49 1 74 3 56 154 . . . 5 60 . Move 5460 | . 434 279 363 276 283 2299 398 297 70 98 400 263 Hop 39 | . . . . . 1 36 . . . . 2 . Pick Up 82 | . 21 2 11 8 11 15 2 1 . 5 6 . Fast Attach 57 | . 4 . 6 6 6 13 2 2 . 7 9 2 Attach 58 | . . . 9 11 5 13 . . 2 5 8 5 Detach 27 | . 1 . 4 4 1 9 1 . 2 . 5 . Swap 29 | . 7 5 10 1 2 4 . . . . . . Drop 72 | . 14 3 11 7 12 18 . . . . 7 . Fire 185 | . 30 12 59 35 22 17 . . . . 10 . Melee 7 | . . . . 3 . 4 . . . . . . Ram 2 | . . . . . . 1 . . . . . 1 Kick . | . . . . . . . . . . . . . Crush 2 | . . . 2 . . . . . . . . . Escape Stasis 4 | . . . . 4 . . . . . . . . Rewire 5 | . . . . . . . 4 1 . . . . Trap . | . . . . . . . . . . . . . Miscellaneous . | . . . . . . . . . . . . . Route ------- -11/Scrapyard -10/Materials (discovered 2 exits: *Mat / [*Min]) -10/Mines -9/Materials (discovered 4 exits: Mat x2 / [*Min] / *Sto) -9/Storage -8/Materials -7/Factory (discovered 2 exits: *Fac / [*Low]) -7/Lower Caves -7/Lower Caves -6/Factory -6/DSF -5/Factory (discovered 4 exits: *Fac x4) -4/Factory History --------- Turn | Location | Event 1 | -11/Scrapyard | Discovered new exit (range 0) 1 | -11/Scrapyard | Entered Materials 303 | -10/Materials | Build established: Mutant 450 | -10/Materials | Discovered new exit (range 13) 695 | -10/Materials | Discovered new exit (range 13) 1002 | -10/Materials | Entered Mines 1019 | -10/Mines | Learned 4 Materials zone layouts 1079 | -10/Mines | Discovered new exit (range 9) 1168 | -10/Mines | Assisted by bots powering up and referring to "LRC-V3" 1295 | -10/Mines | Learned location of Storage (-9) 1366 | -10/Mines | Met a Derelict testing a Signal Generator 1372 | -10/Mines | Core integrity fell below 50% 1720 | -10/Mines | Entered Materials 1720 | -9/Materials | Evolved 2 slots: Propulsion x1, Utility x1 1721 | -9/Materials | Identified exit to Materials 1998 | -9/Materials | Lost 3 parts (1p1n1w) 2256 | -9/Materials | Discovered new exit (range 6) 2310 | -9/Materials | Discovered new exit (range 8) 2381 | -9/Materials | Core integrity fell below 50% 2620 | -9/Materials | Entered Storage 2773 | -9/Storage | Core integrity fell below 20% 2799 | -9/Storage | Destroyed 8 combat bots 2833 | -9/Storage | Lost 8 parts (4n1u3w) 2959 | -9/Storage | Assisted by bots powering up and referring to "LRC-V3" 3270 | -9/Storage | Build established: Commander-Mutant 3429 | -9/Storage | Entered Materials 3429 | -8/Materials | Accompanied by 4 allies 3429 | -8/Materials | Evolved 2 slots: Propulsion x1, Utility x1 3897 | -8/Materials | Discovered new exit (range 4) 3898 | -8/Materials | Identified exit to Factory 3922 | -8/Materials | Entered Factory 3922 | -7/Factory | Evolved 2 slots: Propulsion x1, Utility x1 4212 | -7/Factory | Discovered new exit (range 10) 4215 | -7/Factory | Build established: Sprinter 4272 | -7/Factory | Fabricated Flight Unit? 4457 | -7/Factory | Fabricated A-02 Transporter (x1) 4497 | -7/Factory | Released all parts (10) 4782 | -7/Factory | Build established: Mutant 4873 | -7/Factory | Core integrity fell below 50% 4919 | -7/Factory | Fabricated Flight Unit? 4933 | -7/Factory | Discovered new exit (range 8) 4966 | -7/Factory | Entered Lower Caves 4986 | -7/Lower Caves | Lost 3 parts (1p2n) 5131 | -7/Lower Caves | Discovered new exit (range 7) 5215 | -7/Lower Caves | Entered another Lower Caves area 5256 | -7/Lower Caves | Discovered new exit (range 10) 5285 | -7/Lower Caves | Learned Factory terminal intel 5351 | -7/Lower Caves | Spotted B-75 Beast 5363 | -7/Lower Caves | Core integrity fell below 20% 5390 | -7/Lower Caves | Lost 3 parts (1n2u) 5425 | -7/Lower Caves | Entered Factory 5425 | -6/Factory | Evolved 2 slots: Utility x2 5426 | -6/Factory | Loaded intel: 25 terminal locations 5442 | -6/Factory | Identified exit to DSF 5498 | -6/Factory | Entered DSF 5543 | -6/DSF | Additional patrols routed to DSF 5580 | -6/DSF | Lost 6 parts (1n4u1w) 5593 | -6/DSF | Core integrity fell below 50% 5617 | -6/DSF | Discovered new exit (range 16) 5631 | -6/DSF | Lost 4 parts (2n2u) 5635 | -6/DSF | Entered Factory 5635 | -5/Factory | Evolved 2 slots: Utility x1, Weapon x1 5643 | -5/Factory | Discovered new exit (range 12) 5709 | -5/Factory | Repaired Imp. Surge Thruster 5728 | -5/Factory | Identified exit to Factory 5891 | -5/Factory | Entered another Factory area 5891 | -4/Factory | Spotted B-86 Titan 5891 | -4/Factory | Evolved 2 slots: Power x1, Utility x1 5953 | -4/Factory | Lost 13 parts (1p5n5u2w) 5974 | -4/Factory | Core integrity fell below 50% 6018 | -4/Factory | Fabricated M-36 Artificer? 6032 | -4/Factory | Lost 4 parts (1p3u) 6093 | -4/Factory | Core integrity fell below 20% 6107 | -4/Factory | Destroyed by H-77 Assassin with Coil Gun Last Messages --------------- 06082_ Slug penetrates Wall. 06082_ Slug penetrates Subcomponent Replicator. 06092_ Acquired Adv. Reaction Control System. 06092_ Penetrated by Slug. 06092_ Slug penetrates Wall. 06093_ Slug penetrates Subcomponent Replicator. 06093_ Subcomponent Replicator disabled. 06093_ Slug penetrates Subcomponent Replicator. 06096_ Slug penetrates Wall. 06097_ Slug penetrates Subcomponent Replicator. 06099_ Penetrated by Slug. 06100_ Adv. Reaction Control System destroyed. 06100_ Penetrated by Slug. 06100_ Slug penetrates Wall. 06103_ Slug penetrates Subcomponent Replicator. 06103_ Penetrated by Slug. 06103_ Slug penetrates Subcomponent Replicator. 06104_ Adv. Medium Treads destroyed. 06104_ Critical hit (Burn: +37). 06107_ Penetrated by Slug. Map ----- +----------------------------------------------------+ | | | | | | | | | | | | | | | | | | | | | | | | | | | ?????????????????????????????????????????????????? | | ?????????????????????????????????????????????????? | | ?????????????????????????????????????????????????? | | ?????????????????????????????????????????????????? | | ?????????????????????????????????????????????????? | | ?????????????????????????????????????????????????? | | ?????????????????????????????????????????????????? | | ?????????????????????????????????????????????????? | | ?????????????????????????????????????????????????? | | ?????????????????????????????????????????????????? | | ?????????????###+###?????????????????????????????? | | ?????????????# ###############???????????????? | | ?????????????# # @ #???????????????? | | ?????????????# # h" """ #???????????????? | | ?????????????# # " "g """"" #???????????????? | | ?????????????+ # " " g""""" #???????????????? | | ?????????????# # #???????????????? | | ?????????????# #h """g """ #???????????????? | | ?????????????# # """" """"" #??????????##???# | | ?????????????# # """" """"" #??????????# | | ?????????????# # #??????????# """ | | ?????????????+ + ##########?# | | ?????????????# ######+######## #?# """ | | ?????????????# # #???? #?# | | ############## # """ #???? #?# """ | | # """ ""#????? ??# | | # """ ""#????? ??# | | # T"#?????? ???#""" | | """ """ """ """ # ""#?????? ???#"R | | """ """ """ """ # ""#??????? ????#""" | | """ """ """ """ # #??????? ????# | | #####/#############+########### | | """ """ """ """ | | """ """ """ """ | | """ """ """ """ | | | | ^ | +----------------------------------------------------+ Best States ------------- Heat Dissipation 43 Energy Generation 19 Energy Capacity 500 Matter Stores 300 Matter Capacity 450 Sight Range 18 Robot Scan Range 14 Terrain Scan Range 20 Terrain Scan Density 10 ECM Strength 1 Jamming Range 12 Additional Mass Support 9 Armor Coverage 225 Propulsion Shielding 66 Weapon Shielding 33 Evasion (%) 72 Targeting Accuracy 6 Recoil Reduction 4 Salvage Targeting 3 Item Schematics ----------------- Flight Unit | -9/Materials | Scanalyzed Energy Filter | -9/Storage | Hacked Robot Schematics ------------------ None Fabricated ------------ Flight Unit | x2 | -7/Factory A-02 Transporter | x1 | -7/Factory | Preloaded Flight Unit | x2 | -7/Factory M-36 Artificer | x1 | -4/Factory | Preloaded Alien Tech Used ----------------- None Achievements -------------- Can't Catch Me Challenges ------------ None Game ------ Seed AntigravContainmentTearclaws Manual? 0 Play Time 02:31:05 Cumulative 56.8 hours Start 2022.04.25 @ 17:47:08 End 2022.04.25 @ 20:35:45 Sessions 1 Manual Loads 0 Difficulty Rogue Special Mode None Game No. 69 Rogue 69 Adventurer 0 Explorer 0 Win Type - Total 0 Types 0/0/0/0/0/0/0/0/0 Lore% 22 Gallery% 29 Achievement% 23 Wizard Run 0 Options --------- ASCII 0 Keyboard 0 Movement Numpad Keybinds 0 Fullscreen 2 Font 18/SmallcapsGlow Map View 76x50 Tactical HUD 1 Map Filters NONE Filters NONE Steam 1 RUN: 49b8554c-0898-4384-9d3a-f485d38adb5b